[Event "*** Titled Tuesday Blitz"]
[Site "Chess.com"]
[Date "2018.01.02"]
[Round "4"]
[White "nickmatta"]
[Black "dawtonlms"]
[Result "1/2-1/2"]
[WhiteElo "2233"]
[BlackElo "2417"]
[TimeControl "180+2"]
[EndTime "13:53:42 PST"]
[Termination "Game drawn by repetition"]

1. d4 {[%clk 0:03:01.9]} 1... Nf6 {[%clk 0:02:59.9]} 2. c4 {[%clk 0:03:03.2]}
2... e6 {[%clk 0:03:00.6]} 3. Nf3 {[%clk 0:03:03.7]} 3... b6 {[%clk 0:02:59.3]}
4. g3 {[%clk 0:03:04.4]} 4... Bb7 {[%clk 0:03:00.5]} 5. Bg2 {[%clk 0:03:05.5]}
5... Bb4+ {[%clk 0:03:01.6]} 6. Kf1 {[%clk 0:03:06.7]} 6... O-O {[%clk
0:03:01.9]} 7. a3 {[%clk 0:02:56.8]} 7... Be7 {[%clk 0:03:02.3]} 8. Nc3 {[%clk
0:02:55.5]} 8... d6 {[%clk 0:03:02.7]} 9. h3 {[%clk 0:02:23.5]} 9... Nbd7 {[%clk
0:03:00.5]} 10. Ng5 {[%clk 0:02:14.5]} 10... Qc8 {[%clk 0:02:53.3]} 11. d5
{[%clk 0:02:09.7]} 11... exd5 {[%clk 0:02:51.1]} 12. cxd5 {[%clk 0:02:09.8]}
12... h6 {[%clk 0:02:51.9]} 13. Nge4 {[%clk 0:02:08.4]} 13... Nxe4 {[%clk
0:02:52.6]} 14. Bxe4 {[%clk 0:02:10.3]} 14... Nc5 {[%clk 0:02:49.1]} 15. Bf3
{[%clk 0:02:11.2]} 15... a5 {[%clk 0:02:50.2]} 16. Be3 {[%clk 0:02:06.4]} 16...
Bf6 {[%clk 0:02:49.4]} 17. Kg2 {[%clk 0:02:01.3]} 17... Re8 {[%clk 0:02:49.8]}
18. Rc1 {[%clk 0:01:56.2]} 18... Qd7 {[%clk 0:02:48.6]} 19. b4 {[%clk
0:01:52.7]} 19... axb4 {[%clk 0:02:49.3]} 20. axb4 {[%clk 0:01:54.5]} 20... Na6
{[%clk 0:02:48.2]} 21. Qb3 {[%clk 0:01:40.7]} 21... c5 {[%clk 0:02:40.4]} 22.
dxc6 {[%clk 0:01:32.8]} 22... Bxc6 {[%clk 0:02:41.6]} 23. Nd5 {[%clk 0:01:34.4]}
23... Bxd5 {[%clk 0:02:35.8]} 24. Bxd5 {[%clk 0:01:35.1]} 24... Rac8 {[%clk
0:02:34.9]} 25. Rhd1 {[%clk 0:01:09.7]} 25... Qb5 {[%clk 0:02:13.1]} 26. Bxf7+
{[%clk 0:01:08.8]} 26... Kh8 {[%clk 0:02:13]} 27. Bxe8 {[%clk 0:01:10.1]} 27...
Rxe8 {[%clk 0:02:14.6]} 28. Qc4 {[%clk 0:01:02.9]} 28... Qa4 {[%clk 0:01:58.9]}
29. Ra1 {[%clk 0:01:00.3]} 29... Bxa1 {[%clk 0:01:59.1]} 30. Rxd6 {[%clk
0:00:53.6]} 30... Qxb4 {[%clk 0:01:44.2]} 31. Qxa6 {[%clk 0:00:31.9]} 31... Qxd6
{[%clk 0:01:44.8]} 32. Qxa1 {[%clk 0:00:33.5]} 32... Qd5+ {[%clk 0:01:45.8]} 33.
Kh2 {[%clk 0:00:32.2]} 33... Ra8 {[%clk 0:01:44.1]} 34. Qb2 {[%clk 0:00:25]}
34... Ra2 {[%clk 0:01:32.9]} 35. Qxb6 {[%clk 0:00:26]} 35... Ra1 {[%clk
0:01:33.1]} 36. f3 {[%clk 0:00:19.8]} 36... Qd1 {[%clk 0:01:28.5]} 37. g4 {[%clk
0:00:16.9]} 37... Qxe2+ {[%clk 0:01:27]} 38. Kg3 {[%clk 0:00:17.2]} 38... Qd3
{[%clk 0:01:14.7]} 39. Bxh6 {[%clk 0:00:11]} 39... Ra6 {[%clk 0:01:02.9]} 40.
Qb8+ {[%clk 0:00:08.9]} 40... Kh7 {[%clk 0:01:04.1]} 41. Bf4 {[%clk 0:00:08.9]}
41... Ra3 {[%clk 0:01:04.3]} 42. Qb7 {[%clk 0:00:06.8]} 42... Ra4 {[%clk
0:01:02.5]} 43. Qc6 {[%clk 0:00:03.6]} 43... Rc4 {[%clk 0:01:02.4]} 44. Qd6
{[%clk 0:00:03.2]} 44... Qc2 {[%clk 0:00:59.4]} 45. Qe5 {[%clk 0:00:04.3]} 45...
Rc5 {[%clk 0:00:58.8]} 46. Qe4+ {[%clk 0:00:04.1]} 46... Qxe4 {[%clk 0:00:55.6]}
47. fxe4 {[%clk 0:00:06]} 47... g5 {[%clk 0:00:55.4]} 48. Be3 {[%clk 0:00:06.2]}
48... Rc3 {[%clk 0:00:55.5]} 49. Kf3 {[%clk 0:00:07.7]} 49... Kg6 {[%clk
0:00:56.7]} 50. e5 {[%clk 0:00:08.3]} 50... Rc4 {[%clk 0:00:55.7]} 51. e6 {[%clk
0:00:03.3]} 51... Rc6 {[%clk 0:00:54.5]} 52. e7 {[%clk 0:00:03.3]} 52... Re6
{[%clk 0:00:55.6]} 53. Bc5 {[%clk 0:00:04]} 53... Kf6 {[%clk 0:00:54.1]} 54. Kg3
{[%clk 0:00:04.9]} 54... Kg6 {[%clk 0:00:53.6]} 55. h4 {[%clk 0:00:05.1]} 55...
gxh4+ {[%clk 0:00:54.6]} 56. Kxh4 {[%clk 0:00:07]} 56... Re4 {[%clk 0:00:55.2]}
57. Bd6 {[%clk 0:00:07.4]} 57... Re6 {[%clk 0:00:56.1]} 58. Kg3 {[%clk
0:00:07.5]} 58... Re4 {[%clk 0:00:56.8]} 59. Kf3 {[%clk 0:00:08.1]} 59... Re6
{[%clk 0:00:58]} 60. Kf4 {[%clk 0:00:08.5]} 60... Re1 {[%clk 0:00:58.5]} 61. Be5
{[%clk 0:00:06.7]} 61... Kf7 {[%clk 0:00:59.1]} 62. Bd6 {[%clk 0:00:08.2]} 62...
Kg6 {[%clk 0:00:58.2]} 63. Be5 {[%clk 0:00:08.9]} 63... Kf7 {[%clk 0:00:59.2]}
64. Bd6 {[%clk 0:00:08.2]} 64... Kg6 {[%clk 0:00:58.8]} 1/2-1/2

[Event "*** Titled Tuesday Blitz"]
[Site "Chess.com"]
[Date "2018.01.02"]
[Round "4"]
[White "Vrolijk"]
[Black "MITerryble"]
[Result "0-1"]
[WhiteElo "2437"]
[BlackElo "2656"]
[TimeControl "180+2"]
[EndTime "13:53:51 PST"]
[Termination "MITerryble won by resignation"]

1. Nf3 {[%clk 0:03:01.9]} 1... Nf6 {[%clk 0:02:59.6]} 2. g3 {[%clk 0:03:01.5]}
2... d5 {[%clk 0:03:00.7]} 3. Bg2 {[%clk 0:03:02.1]} 3... c6 {[%clk 0:03:01.5]}
4. O-O {[%clk 0:03:03.4]} 4... Bg4 {[%clk 0:03:02.3]} 5. h3 {[%clk 0:03:02.1]}
5... Bh5 {[%clk 0:03:01.9]} 6. d3 {[%clk 0:03:01.8]} 6... Nbd7 {[%clk
0:03:03.1]} 7. Qe1 {[%clk 0:03:01.9]} 7... e5 {[%clk 0:03:03.7]} 8. e4 {[%clk
0:03:03.4]} 8... dxe4 {[%clk 0:03:04.6]} 9. dxe4 {[%clk 0:03:04.7]} 9... Be7
{[%clk 0:03:06.1]} 10. Nbd2 {[%clk 0:03:04]} 10... O-O {[%clk 0:03:05.8]} 11. a4
{[%clk 0:03:05.5]} 11... Re8 {[%clk 0:03:02.6]} 12. Nc4 {[%clk 0:03:05.4]} 12...
Qc7 {[%clk 0:03:03.7]} 13. Nh4 {[%clk 0:03:06.3]} 13... Rad8 {[%clk 0:02:59.3]}
14. Nf5 {[%clk 0:03:05.9]} 14... Bf8 {[%clk 0:03:00.3]} 15. Be3 {[%clk
0:03:03.4]} 15... b6 {[%clk 0:03:01.1]} 16. Qc3 {[%clk 0:02:57.2]} 16... Nc5
{[%clk 0:02:52.3]} 17. Nd2 {[%clk 0:02:47.6]} 17... Bg6 {[%clk 0:02:47.2]} 18.
g4 {[%clk 0:02:46.7]} 18... h5 {[%clk 0:02:45.1]} 19. Bf3 {[%clk 0:02:19.8]}
19... Ne6 {[%clk 0:02:34.9]} 20. Nb3 {[%clk 0:02:11.7]} 20... Nf4 {[%clk
0:02:31.1]} 21. Bxf4 {[%clk 0:02:11]} 21... exf4 {[%clk 0:02:32.1]} 22. Rfe1
{[%clk 0:02:12.6]} 22... hxg4 {[%clk 0:02:31.3]} 23. hxg4 {[%clk 0:02:14.5]}
23... a5 {[%clk 0:02:23.3]} 24. Qc4 {[%clk 0:02:09.1]} 24... Nd7 {[%clk
0:02:22]} 25. Qe2 {[%clk 0:01:51.7]} 25... Ne5 {[%clk 0:02:15.7]} 26. Rad1
{[%clk 0:01:50.9]} 26... f6 {[%clk 0:02:13.1]} 27. Kg2 {[%clk 0:01:45.1]} 27...
Bf7 {[%clk 0:02:12.8]} 28. Rxd8 {[%clk 0:01:36.9]} 28... Rxd8 {[%clk 0:02:10.7]}
29. Rd1 {[%clk 0:01:38.4]} 29... g6 {[%clk 0:02:07.5]} 30. Rxd8 {[%clk
0:01:30.1]} 30... Qxd8 {[%clk 0:02:09.4]} 31. Nfd4 {[%clk 0:01:30.9]} 31... Qd7
{[%clk 0:01:46.5]} 32. Qd1 {[%clk 0:01:28]} 32... Nc4 {[%clk 0:01:23]} 33. Qc1
{[%clk 0:01:26]} 33... Bd6 {[%clk 0:01:18.3]} 34. Ne2 {[%clk 0:01:23]} 34... g5
{[%clk 0:01:08.4]} 35. Nbd4 {[%clk 0:01:22.3]} 35... Ne5 {[%clk 0:01:08.2]} 36.
Nf5 {[%clk 0:01:22.3]} 36... Bf8 {[%clk 0:01:06.3]} 37. Nc3 {[%clk 0:01:12.1]}
37... Be6 {[%clk 0:00:56.5]} 38. Qd1 {[%clk 0:01:03.6]} 38... Qh7 {[%clk
0:00:54.3]} 39. b3 {[%clk 0:00:43.1]} 39... Bd7 {[%clk 0:00:52.2]} 40. Be2
{[%clk 0:00:30.1]} 40... Bb4 {[%clk 0:00:53]} 41. Na2 {[%clk 0:00:28.4]} 41...
Bc5 {[%clk 0:00:53.9]} 42. c3 {[%clk 0:00:24.4]} 42... Bf8 {[%clk 0:00:36.8]}
43. b4 {[%clk 0:00:23.4]} 43... Be6 {[%clk 0:00:37.7]} 44. Qd2 {[%clk
0:00:21.4]} 44... f3+ {[%clk 0:00:32.1]} 45. Bxf3 {[%clk 0:00:22]} 45... Nxf3
{[%clk 0:00:33.3]} 46. Kxf3 {[%clk 0:00:23.9]} 46... Qh3+ {[%clk 0:00:33.2]} 47.
Ke2 {[%clk 0:00:25.1]} 47... Qxg4+ {[%clk 0:00:33.5]} 48. Kf1 {[%clk 0:00:20.4]}
48... Qxe4 {[%clk 0:00:33.5]} 49. Ne3 {[%clk 0:00:13]} 49... Qb1+ {[%clk
0:00:27.8]} 50. Kg2 {[%clk 0:00:13.1]} 50... Qxa2 {[%clk 0:00:27.5]} 51. Qd3
{[%clk 0:00:14.4]} 51... Bf7 {[%clk 0:00:24.1]} 52. Ng4 {[%clk 0:00:13.4]} 52...
Qd5+ {[%clk 0:00:24.1]} 53. Qxd5 {[%clk 0:00:13.8]} 53... Bxd5+ {[%clk
0:00:25.1]} 54. Kg3 {[%clk 0:00:15.6]} 54... Kg7 {[%clk 0:00:26.8]} 55. Ne3
{[%clk 0:00:16.6]} 55... Bd6+ {[%clk 0:00:28.6]} 0-1

[Event "*** Titled Tuesday Blitz"]
[Site "Chess.com"]
[Date "2018.01.02"]
[Round "4"]
[White "DagurR"]
[Black "RaphaeI"]
[Result "1-0"]
[WhiteElo "2326"]
[BlackElo "2479"]
[TimeControl "180+2"]
[EndTime "13:53:53 PST"]
[Termination "DagurR won on time"]

1. d4 {[%clk 0:03:01.9]} 1... Nf6 {[%clk 0:03:00.4]} 2. c4 {[%clk 0:03:02.8]}
2... e6 {[%clk 0:03:01.3]} 3. Nc3 {[%clk 0:03:02.8]} 3... Bb4 {[%clk 0:03:01.5]}
4. a3 {[%clk 0:03:03.1]} 4... Bxc3+ {[%clk 0:03:02.2]} 5. bxc3 {[%clk 0:03:05]}
5... c5 {[%clk 0:03:02.3]} 6. f3 {[%clk 0:03:04.2]} 6... Nc6 {[%clk 0:02:47.6]}
7. e4 {[%clk 0:03:04.1]} 7... d6 {[%clk 0:02:40.9]} 8. Be3 {[%clk 0:02:51]} 8...
Qa5 {[%clk 0:01:44.1]} 9. Qd2 {[%clk 0:02:28.5]} 9... e5 {[%clk 0:01:44]} 10. d5
{[%clk 0:02:24.2]} 10... Ne7 {[%clk 0:01:45]} 11. Bd3 {[%clk 0:02:24.6]} 11...
h6 {[%clk 0:01:42.5]} 12. Ne2 {[%clk 0:02:22.3]} 12... Bd7 {[%clk 0:01:30.6]}
13. O-O {[%clk 0:02:21.5]} 13... g5 {[%clk 0:01:30.3]} 14. g3 {[%clk 0:01:25]}
14... Rg8 {[%clk 0:01:23.2]} 15. Kh1 {[%clk 0:01:26.2]} 15... O-O-O {[%clk
0:01:09]} 16. Rf2 {[%clk 0:01:27.3]} 16... Rde8 {[%clk 0:01:05.7]} 17. Ng1
{[%clk 0:01:28.6]} 17... Ng6 {[%clk 0:01:06.2]} 18. Bf1 {[%clk 0:01:29.7]} 18...
Nh5 {[%clk 0:01:01.2]} 19. Bh3 {[%clk 0:01:30.4]} 19... Bxh3 {[%clk 0:00:46.5]}
20. Nxh3 {[%clk 0:01:32.3]} 20... Qa4 {[%clk 0:00:46.4]} 21. Qd3 {[%clk
0:01:25.8]} 21... Nf6 {[%clk 0:00:43.3]} 22. Ng1 {[%clk 0:01:26.6]} 22... Qd7
{[%clk 0:00:36.5]} 23. a4 {[%clk 0:01:26.9]} 23... Kb8 {[%clk 0:00:35.1]} 24. a5
{[%clk 0:01:28.3]} 24... Ka8 {[%clk 0:00:36.4]} 25. Rb2 {[%clk 0:01:24.7]} 25...
Rb8 {[%clk 0:00:35.3]} 26. Qf1 {[%clk 0:01:22.4]} 26... Nh7 {[%clk 0:00:27.5]}
27. Qh3 {[%clk 0:01:19.4]} 27... Qxh3 {[%clk 0:00:24.4]} 28. Nxh3 {[%clk
0:01:21.3]} 28... Rgf8 {[%clk 0:00:26.3]} 29. Nf2 {[%clk 0:01:16.4]} 29... Ne7
{[%clk 0:00:24.2]} 30. Rb6 {[%clk 0:01:01.3]} 30... Nc8 {[%clk 0:00:20.7]} 31.
Rb2 {[%clk 0:00:59.9]} 31... Nf6 {[%clk 0:00:17.8]} 32. Kg2 {[%clk 0:01:00.4]}
32... a6 {[%clk 0:00:17.5]} 33. h4 {[%clk 0:01:01.6]} 33... Rg8 {[%clk
0:00:16.5]} 34. hxg5 {[%clk 0:01:02.1]} 34... hxg5 {[%clk 0:00:18.4]} 35. g4
{[%clk 0:00:58.3]} 35... Nd7 {[%clk 0:00:14.5]} 36. Rh1 {[%clk 0:00:52.4]} 36...
Ne7 {[%clk 0:00:12.4]} 37. Rh7 {[%clk 0:00:51.1]} 37... Rbf8 {[%clk 0:00:11.1]}
38. Nh3 {[%clk 0:00:51.3]} 38... Ng6 {[%clk 0:00:04.4]} 39. Bxg5 {[%clk
0:00:51.4]} 39... Nb8 {[%clk 0:00:03]} 40. Bh6 {[%clk 0:00:48.1]} 40... Re8
{[%clk 0:00:03.8]} 41. Rxf7 {[%clk 0:00:48.4]} 41... Re7 {[%clk 0:00:02.9]} 42.
Rxe7 {[%clk 0:00:42.6]} 42... Nxe7 {[%clk 0:00:04.8]} 43. Kg3 {[%clk 0:00:41.5]}
43... Ka7 {[%clk 0:00:05.5]} 44. g5 {[%clk 0:00:40.6]} 44... Nd7 {[%clk
0:00:05.7]} 45. f4 {[%clk 0:00:41.7]} 45... b6 {[%clk 0:00:04.5]} 46. f5 {[%clk
0:00:40.7]} 46... bxa5 {[%clk 0:00:03.7]} 47. Kg4 {[%clk 0:00:38.2]} 47... Nb6
{[%clk 0:00:04.7]} 48. f6 {[%clk 0:00:37.2]} 48... Ng6 {[%clk 0:00:05.4]} 49.
Kf5 {[%clk 0:00:35.2]} 49... Nh4+ {[%clk 0:00:04.6]} 50. Ke6 {[%clk 0:00:34.9]}
50... Nxc4 {[%clk 0:00:05.9]} 51. Ra2 {[%clk 0:00:34.8]} 51... Re8+ {[%clk
0:00:06.5]} 52. Kd7 {[%clk 0:00:35.3]} 52... Rb8 {[%clk 0:00:07.5]} 53. f7
{[%clk 0:00:34.2]} 53... Ng6 {[%clk 0:00:08]} 54. Ke6 {[%clk 0:00:30.3]} 54...
Kb6 {[%clk 0:00:07.2]} 55. Kf6 {[%clk 0:00:31.2]} 55... Nf8 {[%clk 0:00:02.9]}
56. Bxf8 {[%clk 0:00:31.3]} 56... Rxf8 {[%clk 0:00:04.8]} 57. Ke7 {[%clk
0:00:31.9]} 1-0

[Event "*** Titled Tuesday Blitz"]
[Site "Chess.com"]
[Date "2018.01.02"]
[Round "4"]
[White "theblitzchamp"]
[Black "jcibarra"]
[Result "0-1"]
[WhiteElo "2450"]
[BlackElo "2721"]
[TimeControl "180+2"]
[EndTime "13:53:55 PST"]
[Termination "jcibarra won by checkmate"]

1. e4 {[%clk 0:03:01.1]} 1... c5 {[%clk 0:02:59.8]} 2. Nf3 {[%clk 0:03:02.3]}
2... Nf6 {[%clk 0:03:00.3]} 3. Nc3 {[%clk 0:03:02.5]} 3... d5 {[%clk 0:03:00.7]}
4. exd5 {[%clk 0:02:38.5]} 4... Nxd5 {[%clk 0:03:02.6]} 5. d4 {[%clk 0:02:29]}
5... Nxc3 {[%clk 0:03:02.5]} 6. bxc3 {[%clk 0:02:29.7]} 6... g6 {[%clk 0:03:04]}
7. Bc4 {[%clk 0:02:30.1]} 7... Bg7 {[%clk 0:03:04.9]} 8. O-O {[%clk 0:02:31]}
8... O-O {[%clk 0:03:06.1]} 9. Re1 {[%clk 0:02:32.3]} 9... Nc6 {[%clk
0:03:06.7]} 10. Bb2 {[%clk 0:02:32]} 10... Bg4 {[%clk 0:02:48.2]} 11. h3 {[%clk
0:02:32.7]} 11... Bxf3 {[%clk 0:02:47.1]} 12. Qxf3 {[%clk 0:02:33]} 12... cxd4
{[%clk 0:02:49]} 13. cxd4 {[%clk 0:01:42]} 13... Nxd4 {[%clk 0:02:47.4]} 14.
Bxd4 {[%clk 0:01:42.3]} 14... Qxd4 {[%clk 0:02:45.3]} 15. Bb3 {[%clk 0:01:42.7]}
15... Qd7 {[%clk 0:02:25]} 16. Rad1 {[%clk 0:01:42.5]} 16... Qc7 {[%clk
0:02:24.8]} 17. Qe4 {[%clk 0:01:38.2]} 17... e6 {[%clk 0:02:23.6]} 18. Rd3
{[%clk 0:01:31.9]} 18... Rad8 {[%clk 0:02:18.9]} 19. Red1 {[%clk 0:01:32.8]}
19... Bf6 {[%clk 0:02:15.9]} 20. g3 {[%clk 0:01:10.4]} 20... Kg7 {[%clk
0:02:14.4]} 21. h4 {[%clk 0:01:10.1]} 21... h5 {[%clk 0:02:14]} 22. Qa4 {[%clk
0:01:10.6]} 22... a6 {[%clk 0:02:05.8]} 23. Rd7 {[%clk 0:01:11.1]} 23... b5
{[%clk 0:01:55.1]} 24. Qd4 {[%clk 0:00:22.2]} 24... Bxd4 {[%clk 0:01:28.6]} 25.
Rxc7 {[%clk 0:00:22.7]} 25... Bxf2+ {[%clk 0:01:30.1]} 26. Kxf2 {[%clk
0:00:24.3]} 26... Rxd1 {[%clk 0:01:31.5]} 27. Bxe6 {[%clk 0:00:26]} 27... Rd6
{[%clk 0:01:26.9]} 28. Bb3 {[%clk 0:00:26.9]} 28... Rf6+ {[%clk 0:01:28.1]} 29.
Kg2 {[%clk 0:00:27.3]} 29... Re8 {[%clk 0:01:26.5]} 30. a4 {[%clk 0:00:28.4]}
30... Re2+ {[%clk 0:01:26.4]} 31. Kg1 {[%clk 0:00:26.5]} 31... bxa4 {[%clk
0:01:24]} 32. Bxa4 {[%clk 0:00:27.8]} 32... Rf3 {[%clk 0:01:23.7]} 33. Bb3
{[%clk 0:00:27.9]} 33... Rd2 {[%clk 0:01:21.8]} 34. Ra7 {[%clk 0:00:24.6]} 34...
Rxg3+ {[%clk 0:01:21.4]} 35. Kf1 {[%clk 0:00:25.1]} 35... Rf3+ {[%clk
0:01:21.6]} 36. Ke1 {[%clk 0:00:26.5]} 36... Rd6 {[%clk 0:01:19.3]} 37. Ke2
{[%clk 0:00:27.9]} 37... Rh3 {[%clk 0:01:14.8]} 38. Rxf7+ {[%clk 0:00:24.8]}
38... Kh6 {[%clk 0:01:16.1]} 39. Rf4 {[%clk 0:00:25.5]} 39... Rb6 {[%clk
0:01:06.6]} 40. Ra4 {[%clk 0:00:22.7]} 40... Rbxb3 {[%clk 0:01:02.7]} 41. cxb3
{[%clk 0:00:23.6]} 41... Rxb3 {[%clk 0:01:04.6]} 42. Kf2 {[%clk 0:00:22.7]}
42... Rb6 {[%clk 0:01:05.4]} 43. Kg3 {[%clk 0:00:23.9]} 43... Rf6 {[%clk
0:01:05.2]} 44. Ra5 {[%clk 0:00:24.6]} 44... Kg7 {[%clk 0:01:05.9]} 45. Rc5
{[%clk 0:00:25.7]} 45... Kf7 {[%clk 0:01:07.1]} 46. Rc7+ {[%clk 0:00:26.6]}
46... Ke6 {[%clk 0:01:08]} 47. Ra7 {[%clk 0:00:27]} 47... Kd5 {[%clk 0:01:08.6]}
48. Rd7+ {[%clk 0:00:28.1]} 48... Kc5 {[%clk 0:01:09.3]} 49. Rc7+ {[%clk
0:00:29.6]} 49... Kb5 {[%clk 0:01:10.5]} 50. Rb7+ {[%clk 0:00:30.9]} 50... Rb6
{[%clk 0:01:11.1]} 51. Ra7 {[%clk 0:00:31.7]} 51... a5 {[%clk 0:01:12.5]} 52.
Kf4 {[%clk 0:00:33.1]} 52... a4 {[%clk 0:01:13.8]} 53. Kg5 {[%clk 0:00:32.8]}
53... Kb4 {[%clk 0:01:12.3]} 54. Re7 {[%clk 0:00:32.2]} 54... Ra6 {[%clk
0:01:08.1]} 55. Re4+ {[%clk 0:00:32.9]} 55... Kc3 {[%clk 0:01:08.6]} 56. Re3+
{[%clk 0:00:33.9]} 56... Kc2 {[%clk 0:01:07.1]} 57. Re2+ {[%clk 0:00:33]} 57...
Kd3 {[%clk 0:01:08.1]} 58. Ra2 {[%clk 0:00:32.2]} 58... a3 {[%clk 0:01:09.4]}
59. Kh6 {[%clk 0:00:32.9]} 59... Kc3 {[%clk 0:01:09.5]} 60. Kg5 {[%clk
0:00:32.2]} 60... Kb3 {[%clk 0:01:10.5]} 61. Rf2 {[%clk 0:00:28.6]} 61... a2
{[%clk 0:01:10.9]} 62. Rf3+ {[%clk 0:00:30.3]} 62... Kc4 {[%clk 0:01:12.1]} 63.
Rf4+ {[%clk 0:00:31.4]} 63... Kd5 {[%clk 0:01:12.9]} 64. Rf7 {[%clk 0:00:28.3]}
64... a1=Q {[%clk 0:01:12.6]} 65. Kh6 {[%clk 0:00:30.2]} 65... Qh8+ {[%clk
0:01:10.8]} 66. Kg5 {[%clk 0:00:31.4]} 66... Ke6 {[%clk 0:01:08.7]} 67. Kxg6
{[%clk 0:00:23.4]} 67... Qe8 {[%clk 0:01:07.4]} 68. Kh6 {[%clk 0:00:19.9]} 68...
Kxf7+ {[%clk 0:01:08.6]} 69. Kh7 {[%clk 0:00:20.7]} 69... Qg8# {[%clk
0:01:09.2]} 0-1

[Event "*** Titled Tuesday Blitz"]
[Site "Chess.com"]
[Date "2018.01.02"]
[Round "4"]
[White "kleinebeer98"]
[Black "chito89"]
[Result "1-0"]
[WhiteElo "2529"]
[BlackElo "2587"]
[TimeControl "180+2"]
[EndTime "13:54:08 PST"]
[Termination "kleinebeer98 won on time"]

1. e4 {[%clk 0:03:01.9]} 1... g6 {[%clk 0:02:19.8]} 2. d4 {[%clk 0:02:59.4]}
2... Bg7 {[%clk 0:02:19.4]} 3. Nc3 {[%clk 0:02:59.3]} 3... d6 {[%clk 0:02:19.3]}
4. h4 {[%clk 0:03:00]} 4... Nf6 {[%clk 0:02:17.4]} 5. h5 {[%clk 0:02:56]} 5...
Nxh5 {[%clk 0:02:18]} 6. g4 {[%clk 0:02:54.3]} 6... Nf6 {[%clk 0:02:17.3]} 7. g5
{[%clk 0:02:55.9]} 7... Nfd7 {[%clk 0:02:14.5]} 8. f4 {[%clk 0:02:56.5]} 8... c6
{[%clk 0:02:07]} 9. a4 {[%clk 0:02:55.5]} 9... c5 {[%clk 0:02:07.8]} 10. d5
{[%clk 0:02:54.9]} 10... Na6 {[%clk 0:01:55.9]} 11. Nf3 {[%clk 0:02:44.1]} 11...
Nb4 {[%clk 0:01:55.9]} 12. a5 {[%clk 0:02:09.5]} 12... a6 {[%clk 0:01:48.5]} 13.
Qe2 {[%clk 0:01:58]} 13... b5 {[%clk 0:01:44.1]} 14. Bg2 {[%clk 0:01:02.6]}
14... Bb7 {[%clk 0:01:43.1]} 15. e5 {[%clk 0:00:37]} 15... Nxd5 {[%clk 0:01:41]}
16. Nxd5 {[%clk 0:00:26.7]} 16... Bxd5 {[%clk 0:01:41.5]} 17. exd6 {[%clk
0:00:27.4]} 17... Nf8 {[%clk 0:01:19.6]} 18. Be3 {[%clk 0:00:16.4]} 18... Ne6
{[%clk 0:01:05.5]} 19. Ne5 {[%clk 0:00:10.9]} 19... Bxg2 {[%clk 0:00:48.5]} 20.
d7+ {[%clk 0:00:07.3]} 20... Kf8 {[%clk 0:00:49.8]} 21. Qxg2 {[%clk 0:00:08.1]}
21... Bxe5 {[%clk 0:00:51]} 22. fxe5 {[%clk 0:00:09.2]} 22... Ra7 {[%clk
0:00:52.2]} 23. O-O-O {[%clk 0:00:07.7]} 23... Rxd7 {[%clk 0:00:52.8]} 24. Rdf1
{[%clk 0:00:07.1]} 24... Ng7 {[%clk 0:00:49.6]} 25. Bxc5 {[%clk 0:00:05.8]}
25... Rd5 {[%clk 0:00:46.5]} 26. Qf3 {[%clk 0:00:04.9]} 26... Nf5 {[%clk
0:00:45.9]} 27. Bb4 {[%clk 0:00:05.2]} 27... Qd7 {[%clk 0:00:32.6]} 28. Rd1
{[%clk 0:00:03.7]} 28... Nd4 {[%clk 0:00:29.2]} 29. Qe4 {[%clk 0:00:02.5]} 29...
Kg7 {[%clk 0:00:21]} 30. Bc3 {[%clk 0:00:03.5]} 30... Rd8 {[%clk 0:00:21.5]} 31.
e6 {[%clk 0:00:04.4]} 31... Qxe6 {[%clk 0:00:22.4]} 32. Rxd4 {[%clk 0:00:04.4]}
32... Rxd4 {[%clk 0:00:08]} 33. Bxd4+ {[%clk 0:00:04.9]} 33... Kg8 {[%clk
0:00:08.6]} 34. Qh4 {[%clk 0:00:06.3]} 34... h5 {[%clk 0:00:08.7]} 35. gxh6
{[%clk 0:00:08.2]} 35... Kh7 {[%clk 0:00:09.7]} 36. Bc3 {[%clk 0:00:06.8]} 36...
b4 {[%clk 0:00:05]} 37. Qxb4 {[%clk 0:00:06.5]} 37... Qe3+ {[%clk 0:00:02.9]}
38. Kb1 {[%clk 0:00:07.5]} 38... Qf3 {[%clk 0:00:04.6]} 39. Re1 {[%clk
0:00:08.2]} 39... e6 {[%clk 0:00:05.5]} 40. Qe7 {[%clk 0:00:08.4]} 40... Rb8
{[%clk 0:00:06]} 41. Re3 {[%clk 0:00:05.6]} 41... Qf1+ {[%clk 0:00:06.7]} 42.
Ka2 {[%clk 0:00:06.5]} 42... Qf5 {[%clk 0:00:05.5]} 43. Rd3 {[%clk 0:00:04.6]}
43... e5 {[%clk 0:00:05.7]} 44. Qxe5 {[%clk 0:00:05.4]} 44... Qxe5 {[%clk
0:00:06]} 45. Bxe5 {[%clk 0:00:07.3]} 45... Rb5 {[%clk 0:00:07.8]} 46. Bg7
{[%clk 0:00:07.2]} 46... Rxa5+ {[%clk 0:00:08.6]} 47. Kb1 {[%clk 0:00:08.5]}
47... g5 {[%clk 0:00:10]} 48. Rd8 {[%clk 0:00:09.1]} 48... g4 {[%clk 0:00:11.3]}
49. Rh8+ {[%clk 0:00:09.7]} 49... Kg6 {[%clk 0:00:12.7]} 50. Bc3 {[%clk
0:00:10.4]} 50... f5 {[%clk 0:00:11.1]} 51. Bxa5 {[%clk 0:00:10.9]} 1-0